[Event "Titled Tuesday Blitz October 11 Early 2022"]
[White "Deuer, Marius"]
[Black "Rose, Felix"]
[WhiteFideId "16236432"]
[BlackFideId "5105722"]
[WhiteElo "2226"]
[BlackElo "2039"]
[Result "0-1"]
[Round "03"]
[TimeControl "180+1"]
[Date "2022.10.12"]
[WhiteClock "0:00:04"]
[BlackClock "0:00:21"]

1. b3 {[%clk 0:03:00]}  e5 {[%clk 0:02:59]} 2. Bb2 {[%clk 0:02:56]}  Nc6 {[%clk 0:02:59]} 3. e3 {[%clk 0:02:57]}  Nf6 {[%clk 0:03:00]} 4. c4 {[%clk 0:02:54]}  d5 {[%clk 0:02:59]} 5. cxd5 {[%clk 0:02:53]}  Nxd5 {[%clk 0:03:00]} 6. Nc3 {[%clk 0:02:53]}  Be6 {[%clk 0:02:59]} 7. Nf3 {[%clk 0:02:53]}  Qd7 {[%clk 0:02:57]} 8. a3 {[%clk 0:02:44]}  f6 {[%clk 0:02:56]} 9. Rc1 {[%clk 0:01:43]}  O-O-O {[%clk 0:02:55]} 10. Ne4 {[%clk 0:01:37]}  h5 {[%clk 0:02:51]} 11. Bb5 {[%clk 0:01:22]}  Nde7 {[%clk 0:02:34]} 12. Nc5 {[%clk 0:01:16]}  Qd6 {[%clk 0:02:30]} 13. d4 {[%clk 0:01:07]}  exd4 {[%clk 0:02:03]} 14. Nxd4 {[%clk 0:00:37]}  Bg4 {[%clk 0:01:44]} 15. f3 {[%clk 0:00:10]}  Nxd4 {[%clk 0:01:44]} 16. Bxd4 {[%clk 0:00:11]}  Bf5 {[%clk 0:01:37]} 17. O-O {[%clk 0:00:11]}  a6 {[%clk 0:01:30]} 18. Ba4 {[%clk 0:00:10]}  Nc6 {[%clk 0:01:08]} 19. Nxb7 {[%clk 0:00:09]}  Kxb7 {[%clk 0:00:57]} 20. Bxc6+ {[%clk 0:00:09]}  Kc8 {[%clk 0:00:51]} 21. Qe2 {[%clk 0:00:07]}  Qxa3 {[%clk 0:00:22]} 22. Ra1 {[%clk 0:00:06]}  Rxd4 {[%clk 0:00:23]} 23. Rxa3 {[%clk 0:00:05]}  Bd3 {[%clk 0:00:22]} 24. Qb2 {[%clk 0:00:05]}  Rd6 {[%clk 0:00:21]} 25. Rxa6 {[%clk 0:00:04]}  Bxa6 {[%clk 0:00:21]} 26. Be4 {[%clk 0:00:05]}  Bxf1 {[%clk 0:00:21]} 27. Kxf1 {[%clk 0:00:04]}  Kd7 {[%clk 0:00:21]} 28. Qc2 {[%clk 0:00:04]}  Be7 {[%clk 0:00:21]} 0-1


[Site "https://www.chess.com"]

[Event "Titled Tuesday Blitz October 11 Early 2022"]
[White "Djokic, Mihailo"]
[Black "Amgalantengis, Enkh-Amgalan"]
[WhiteFideId "976440"]
[BlackFideId "4903536"]
[WhiteElo "2315"]
[BlackElo "1772"]
[Result "1-0"]
[Round "03"]
[TimeControl "180+1"]
[Date "2022.10.12"]
[WhiteClock "0:02:15"]
[BlackClock "0:01:55"]

1. e4 {[%clk 0:03:00]}  c6 {[%clk 0:02:44]} 2. d4 {[%clk 0:02:52]}  d5 {[%clk 0:02:45]} 3. e5 {[%clk 0:02:50]}  Bf5 {[%clk 0:02:45]} 4. h4 {[%clk 0:02:50]}  h5 {[%clk 0:02:44]} 5. Bg5 {[%clk 0:02:44]}  Qb6 {[%clk 0:02:39]} 6. Bd3 {[%clk 0:02:28]}  Bxd3 {[%clk 0:02:39]} 7. Qxd3 {[%clk 0:02:28]}  Qxb2 {[%clk 0:02:37]} 8. e6 {[%clk 0:02:28]}  Qxa1 {[%clk 0:02:33]} 9. Qb3 {[%clk 0:02:26]}  b6 {[%clk 0:02:24]} 10. Nf3 {[%clk 0:02:25]}  a5 {[%clk 0:02:01]} 11. Qxb6 {[%clk 0:02:23]}  fxe6 {[%clk 0:01:55]} 12. Qb7 {[%clk 0:02:16]}  Qxa2 {[%clk 0:01:55]} 13. Qc8+ {[%clk 0:02:15]} 1-0


[Site "https://www.chess.com"]

[Event "Titled Tuesday Blitz October 11 Early 2022"]
[White "Donchenko, Alexander"]
[Black "Hnydiuk, Aleksander"]
[WhiteFideId "24603295"]
[BlackFideId "1109057"]
[WhiteElo "2572"]
[BlackElo "2374"]
[Result "1-0"]
[Round "03"]
[TimeControl "180+1"]
[Date "2022.10.12"]
[WhiteClock "0:00:11"]
[BlackClock "0:00:02"]

1. Nf3 {[%clk 0:02:58]}  Nf6 {[%clk 0:02:59]} 2. g3 {[%clk 0:02:58]}  d5 {[%clk 0:02:56]} 3. Bg2 {[%clk 0:02:58]}  Nbd7 {[%clk 0:02:56]} 4. d4 {[%clk 0:02:58]}  b5 {[%clk 0:02:56]} 5. O-O {[%clk 0:02:58]}  Bb7 {[%clk 0:02:54]} 6. a4 {[%clk 0:02:56]}  b4 {[%clk 0:02:54]} 7. c4 {[%clk 0:02:57]}  bxc3 {[%clk 0:02:41]} 8. Nxc3 {[%clk 0:02:57]}  e6 {[%clk 0:02:39]} 9. Bf4 {[%clk 0:02:55]}  Bd6 {[%clk 0:02:27]} 10. Bxd6 {[%clk 0:02:53]}  cxd6 {[%clk 0:02:26]} 11. b4 {[%clk 0:02:53]}  O-O {[%clk 0:02:25]} 12. Qb3 {[%clk 0:02:49]}  Nb6 {[%clk 0:02:21]} 13. a5 {[%clk 0:02:49]}  Nc4 {[%clk 0:02:20]} 14. Rfc1 {[%clk 0:02:43]}  Rc8 {[%clk 0:02:14]} 15. Ne1 {[%clk 0:02:37]}  Qd7 {[%clk 0:02:02]} 16. a6 {[%clk 0:02:29]}  Ba8 {[%clk 0:02:01]} 17. Nd3 {[%clk 0:02:29]}  Rc7 {[%clk 0:01:59]} 18. e3 {[%clk 0:02:24]}  Rb8 {[%clk 0:01:57]} 19. b5 {[%clk 0:02:12]}  Rbc8 {[%clk 0:01:49]} 20. Nb4 {[%clk 0:02:10]}  Nb6 {[%clk 0:01:35]} 21. Nd3 {[%clk 0:02:04]}  Ne4 {[%clk 0:01:33]} 22. Ne2 {[%clk 0:01:48]}  Rc4 {[%clk 0:01:15]} 23. Bxe4 {[%clk 0:01:34]}  dxe4 {[%clk 0:01:11]} 24. Ndf4 {[%clk 0:01:35]}  e5 {[%clk 0:00:54]} 25. Rxc4 {[%clk 0:01:05]}  Nxc4 {[%clk 0:00:48]} 26. dxe5 {[%clk 0:00:59]}  dxe5 {[%clk 0:00:44]} 27. Rd1 {[%clk 0:00:59]}  Nd2 {[%clk 0:00:35]} 28. Nh5 {[%clk 0:00:30]}  Nf3+ {[%clk 0:00:29]} 29. Kg2 {[%clk 0:00:31]}  Qg4 {[%clk 0:00:26]} 30. Qc4 {[%clk 0:00:22]}  h6 {[%clk 0:00:17]} 31. h3 {[%clk 0:00:16]}  Nh4+ {[%clk 0:00:13]} 32. Kh2 {[%clk 0:00:16]}  Nf3+ {[%clk 0:00:13]} 33. Kg2 {[%clk 0:00:17]}  Qf5 {[%clk 0:00:11]} 34. g4 {[%clk 0:00:15]}  Nh4+ {[%clk 0:00:10]} 35. Kg1 {[%clk 0:00:15]}  Nf3+ {[%clk 0:00:08]} 36. Kg2 {[%clk 0:00:15]}  Nh4+ {[%clk 0:00:07]} 37. Kf1 {[%clk 0:00:15]}  Rxc4 {[%clk 0:00:02]} 38. gxf5 {[%clk 0:00:16]}  Rc8 {[%clk 0:00:01]} 39. Nhg3 {[%clk 0:00:15]}  Rb8 {[%clk 0:00:01]} 40. Nc3 {[%clk 0:00:14]}  Rc8 {[%clk 0:00:01]} 41. Ncxe4 {[%clk 0:00:12]}  Rb8 {[%clk 0:00:02]} 42. Nd6 {[%clk 0:00:12]}  Kh7 {[%clk 0:00:02]} 43. Rc1 {[%clk 0:00:12]}  Rb6 {[%clk 0:00:02]} 44. Nxf7 {[%clk 0:00:12]}  Rxb5 {[%clk 0:00:02]} 45. Rc7 {[%clk 0:00:11]}  Bd5 {[%clk 0:00:01]} 46. Nd6 {[%clk 0:00:11]}  Rb1+ {[%clk 0:00:02]} 47. Ke2 {[%clk 0:00:11]}  Rb2+ {[%clk 0:00:02]} 48. Kd3 {[%clk 0:00:11]}  Rb3+ {[%clk 0:00:02]} 49. Kc2 {[%clk 0:00:11]}  Ra3 {[%clk 0:00:02]} 50. f6 {[%clk 0:00:11]} 1-0


[Site "https://www.chess.com"]

[Event "Titled Tuesday Blitz October 11 Early 2022"]
[White "Duda, Jan-Krzysztof"]
[Black "Ohanyan, Emin"]
[WhiteFideId "1170546"]
[BlackFideId "13312022"]
[WhiteElo "2779"]
[BlackElo "2302"]
[Result "1-0"]
[Round "03"]
[TimeControl "180+1"]
[Date "2022.10.11"]
[WhiteClock "0:00:23"]
[BlackClock "0:00:01"]

1. d4 {[%clk 0:03:00]}  d5 {[%clk 0:02:59]} 2. c4 {[%clk 0:03:00]}  c6 {[%clk 0:03:00]} 3. Nf3 {[%clk 0:02:59]}  Nf6 {[%clk 0:03:00]} 4. e3 {[%clk 0:02:59]}  Bg4 {[%clk 0:02:53]} 5. h3 {[%clk 0:02:59]}  Bxf3 {[%clk 0:02:53]} 6. Qxf3 {[%clk 0:03:00]}  e6 {[%clk 0:02:53]} 7. Nc3 {[%clk 0:02:57]}  Nbd7 {[%clk 0:02:54]} 8. a3 {[%clk 0:02:56]}  Bd6 {[%clk 0:02:51]} 9. g4 {[%clk 0:02:46]}  O-O {[%clk 0:02:47]} 10. g5 {[%clk 0:02:45]}  Ne8 {[%clk 0:02:47]} 11. h4 {[%clk 0:02:41]}  Nc7 {[%clk 0:02:46]} 12. Bd2 {[%clk 0:02:37]}  b5 {[%clk 0:02:37]} 13. cxb5 {[%clk 0:02:19]}  cxb5 {[%clk 0:02:37]} 14. Bd3 {[%clk 0:02:06]}  b4 {[%clk 0:02:29]} 15. axb4 {[%clk 0:02:05]}  Bxb4 {[%clk 0:02:30]} 16. Qh5 {[%clk 0:02:05]}  g6 {[%clk 0:02:24]} 17. Qg4 {[%clk 0:02:03]}  e5 {[%clk 0:02:20]} 18. h5 {[%clk 0:02:02]}  exd4 {[%clk 0:01:55]} 19. hxg6 {[%clk 0:01:28]}  fxg6 {[%clk 0:01:45]} 20. Qxd4 {[%clk 0:01:19]}  Bc5 {[%clk 0:01:35]} 21. Qh4 {[%clk 0:01:15]}  Qe7 {[%clk 0:00:24]} 22. Bxg6 {[%clk 0:01:14]}  hxg6 {[%clk 0:00:24]} 23. Qh8+ {[%clk 0:01:13]}  Kf7 {[%clk 0:00:25]} 24. Rh7+ {[%clk 0:01:13]}  Ke6 {[%clk 0:00:26]} 25. Rxe7+ {[%clk 0:01:11]}  Kxe7 {[%clk 0:00:21]} 26. Qh2 {[%clk 0:00:58]}  Bd6 {[%clk 0:00:19]} 27. Qg2 {[%clk 0:00:52]}  Ke6 {[%clk 0:00:16]} 28. Qg4+ {[%clk 0:00:44]}  Rf5 {[%clk 0:00:16]} 29. Nxd5 {[%clk 0:00:41]}  Ne5 {[%clk 0:00:08]} 30. Nxc7+ {[%clk 0:00:39]}  Bxc7 {[%clk 0:00:09]} 31. Qe4 {[%clk 0:00:34]}  Rh8 {[%clk 0:00:05]} 32. Rxa7 {[%clk 0:00:31]}  Bb6 {[%clk 0:00:04]} 33. Ra6 {[%clk 0:00:29]}  Kd7 {[%clk 0:00:01]} 34. Qb7+ {[%clk 0:00:22]}  Bc7 {[%clk 0:00:01]} 35. Qd5+ {[%clk 0:00:23]} 1-0


[Site "https://www.chess.com"]

[Event "Titled Tuesday Blitz October 11 Early 2022"]
[White "Erenberg, Ariel"]
[Black "Alexikov, Alexander"]
[WhiteFideId "2811634"]
[BlackFideId "14103958"]
[WhiteElo "2416"]
[BlackElo "2222"]
[Result "1-0"]
[Round "03"]
[TimeControl "180+1"]
[Date "2022.10.12"]
[WhiteClock "0:00:41"]
[BlackClock "0:00:03"]

1. d4 {[%clk 0:02:57]}  Nf6 {[%clk 0:02:59]} 2. c4 {[%clk 0:02:57]}  g6 {[%clk 0:03:00]} 3. Nc3 {[%clk 0:02:55]}  Bg7 {[%clk 0:03:01]} 4. e4 {[%clk 0:02:54]}  d6 {[%clk 0:03:00]} 5. Nf3 {[%clk 0:02:55]}  O-O {[%clk 0:03:00]} 6. Be2 {[%clk 0:02:55]}  e5 {[%clk 0:02:59]} 7. O-O {[%clk 0:02:55]}  Nbd7 {[%clk 0:02:58]} 8. Re1 {[%clk 0:02:54]}  Re8 {[%clk 0:02:53]} 9. Bf1 {[%clk 0:02:52]}  c6 {[%clk 0:02:50]} 10. h3 {[%clk 0:02:46]}  exd4 {[%clk 0:02:47]} 11. Nxd4 {[%clk 0:02:46]}  Nc5 {[%clk 0:02:47]} 12. f3 {[%clk 0:02:40]}  d5 {[%clk 0:02:40]} 13. cxd5 {[%clk 0:02:36]}  cxd5 {[%clk 0:02:39]} 14. e5 {[%clk 0:02:37]}  Nh5 {[%clk 0:02:26]} 15. f4 {[%clk 0:02:33]}  Ng3 {[%clk 0:02:17]} 16. Bb5 {[%clk 0:02:27]}  Bd7 {[%clk 0:02:15]} 17. Nxd5 {[%clk 0:02:23]}  a6 {[%clk 0:02:03]} 18. Bxd7 {[%clk 0:02:20]}  Qxd7 {[%clk 0:02:02]} 19. Nb6 {[%clk 0:02:20]}  Qe7 {[%clk 0:01:43]} 20. Nxa8 {[%clk 0:02:19]}  Rxa8 {[%clk 0:01:43]} 21. Qf3 {[%clk 0:02:19]}  Qh4 {[%clk 0:01:26]} 22. Be3 {[%clk 0:02:17]}  Nd3 {[%clk 0:01:08]} 23. Bf2 {[%clk 0:02:04]}  Nxf2 {[%clk 0:00:42]} 24. Qxf2 {[%clk 0:02:02]}  Bh6 {[%clk 0:00:31]} 25. e6 {[%clk 0:01:23]}  Bxf4 {[%clk 0:00:23]} 26. exf7+ {[%clk 0:00:58]}  Kxf7 {[%clk 0:00:23]} 27. Ne6 {[%clk 0:00:55]}  g5 {[%clk 0:00:17]} 28. Qd4 {[%clk 0:00:51]}  Nf5 {[%clk 0:00:13]} 29. Qd7+ {[%clk 0:00:48]}  Kf6 {[%clk 0:00:12]} 30. Nxf4 {[%clk 0:00:46]}  gxf4 {[%clk 0:00:04]} 31. Re6+ {[%clk 0:00:45]}  Kg5 {[%clk 0:00:03]} 32. Re5 {[%clk 0:00:41]} 1-0


[Site "https://www.chess.com"]

[Event "Titled Tuesday Blitz October 11 Early 2022"]
[White "Fernandez Garcia, Gumersindo"]
[Black "Sailer, Mike"]
[WhiteFideId "24516740"]
[BlackFideId "2012901"]
[WhiteElo "2072"]
[BlackElo "2109"]
[Result "1-0"]
[Round "03"]
[TimeControl "180+1"]
[Date "2022.10.12"]
[WhiteClock "0:01:26"]
[BlackClock "0:00:31"]

1. Nf3 {[%clk 0:03:00]}  d5 {[%clk 0:02:58]} 2. b3 {[%clk 0:03:01]}  Nf6 {[%clk 0:02:57]} 3. Bb2 {[%clk 0:03:02]}  Bf5 {[%clk 0:02:55]} 4. e3 {[%clk 0:03:02]}  e6 {[%clk 0:02:53]} 5. c4 {[%clk 0:03:03]}  Be7 {[%clk 0:02:45]} 6. Be2 {[%clk 0:03:03]}  h6 {[%clk 0:02:46]} 7. O-O {[%clk 0:03:04]}  O-O {[%clk 0:02:46]} 8. h3 {[%clk 0:03:04]}  c6 {[%clk 0:02:42]} 9. d4 {[%clk 0:03:04]}  a6 {[%clk 0:02:42]} 10. Nbd2 {[%clk 0:03:04]}  b5 {[%clk 0:02:43]} 11. Ne5 {[%clk 0:02:56]}  Nfd7 {[%clk 0:02:41]} 12. f4 {[%clk 0:02:55]}  Nxe5 {[%clk 0:02:40]} 13. fxe5 {[%clk 0:02:56]}  f6 {[%clk 0:02:39]} 14. exf6 {[%clk 0:02:35]}  Bxf6 {[%clk 0:02:39]} 15. Bg4 {[%clk 0:02:35]}  Bg5 {[%clk 0:02:30]} 16. Qe2 {[%clk 0:02:21]}  Nd7 {[%clk 0:02:29]} 17. Rae1 {[%clk 0:02:16]}  bxc4 {[%clk 0:02:22]} 18. bxc4 {[%clk 0:02:15]}  Rb8 {[%clk 0:02:23]} 19. Ba3 {[%clk 0:02:16]}  Rf7 {[%clk 0:02:08]} 20. e4 {[%clk 0:02:15]}  dxe4 {[%clk 0:01:59]} 21. Nxe4 {[%clk 0:02:11]}  Be7 {[%clk 0:01:50]} 22. Nd6 {[%clk 0:02:06]}  Bxd6 {[%clk 0:01:45]} 23. Bxd6 {[%clk 0:02:07]}  Rb7 {[%clk 0:01:30]} 24. d5 {[%clk 0:01:54]}  cxd5 {[%clk 0:01:24]} 25. cxd5 {[%clk 0:01:52]}  Qb6+ {[%clk 0:01:24]} 26. Kh1 {[%clk 0:01:47]}  Qxd6 {[%clk 0:01:21]} 27. dxe6 {[%clk 0:01:43]}  Bxe6 {[%clk 0:00:55]} 28. Bxe6 {[%clk 0:01:41]}  Nf6 {[%clk 0:00:51]} 29. Qc4 {[%clk 0:01:32]}  Rc7 {[%clk 0:00:31]} 30. Bxf7+ {[%clk 0:01:25]}  Rxf7 {[%clk 0:00:31]} 31. Re8+ {[%clk 0:01:26]}  Nxe8 {[%clk 0:00:31]} 32. Qxf7+ {[%clk 0:01:25]}  Kh7 {[%clk 0:00:31]} 33. Qxe8 {[%clk 0:01:26]} 1-0


[Site "https://www.chess.com"]

[Event "Titled Tuesday Blitz October 11 Early 2022"]
[White "Fernandez Hernandez, Gerardo"]
[Black "Li, Hui"]
[WhiteFideId "2207400"]
[BlackFideId "15400310"]
[WhiteElo "2143"]
[BlackElo "1954"]
[Result "0-1"]
[Round "03"]
[TimeControl "180+1"]
[Date "2022.10.12"]
[WhiteClock "0:00:02"]
[BlackClock "0:00:19"]

1. e4 {[%clk 0:03:00]}  e5 {[%clk 0:02:51]} 2. Nf3 {[%clk 0:02:59]}  Nf6 {[%clk 0:02:52]} 3. Nc3 {[%clk 0:02:58]}  Nc6 {[%clk 0:02:51]} 4. d4 {[%clk 0:02:57]}  exd4 {[%clk 0:02:52]} 5. Nxd4 {[%clk 0:02:57]}  Bb4 {[%clk 0:02:53]} 6. Nxc6 {[%clk 0:02:56]}  bxc6 {[%clk 0:02:53]} 7. Bd3 {[%clk 0:02:57]}  O-O {[%clk 0:02:54]} 8. O-O {[%clk 0:02:56]}  d5 {[%clk 0:02:55]} 9. exd5 {[%clk 0:02:57]}  cxd5 {[%clk 0:02:56]} 10. h3 {[%clk 0:02:56]}  c6 {[%clk 0:02:56]} 11. Qf3 {[%clk 0:02:55]}  Bd6 {[%clk 0:02:49]} 12. Bf4 {[%clk 0:02:54]}  Re8 {[%clk 0:02:44]} 13. Rfe1 {[%clk 0:02:51]}  Be6 {[%clk 0:02:41]} 14. Rad1 {[%clk 0:02:40]}  Rb8 {[%clk 0:02:39]} 15. b3 {[%clk 0:02:33]}  Qc7 {[%clk 0:02:24]} 16. Bxd6 {[%clk 0:02:19]}  Qxd6 {[%clk 0:02:24]} 17. Ne2 {[%clk 0:02:11]}  Qa3 {[%clk 0:01:58]} 18. Nd4 {[%clk 0:01:38]}  Qd6 {[%clk 0:01:42]} 19. c4 {[%clk 0:01:21]}  c5 {[%clk 0:01:36]} 20. Nxe6 {[%clk 0:00:53]}  Rxe6 {[%clk 0:01:27]} 21. cxd5 {[%clk 0:00:49]}  Rxe1+ {[%clk 0:01:25]} 22. Rxe1 {[%clk 0:00:50]}  Qxd5 {[%clk 0:01:19]} 23. Qxd5 {[%clk 0:00:45]}  Nxd5 {[%clk 0:01:20]} 24. Bc4 {[%clk 0:00:44]}  Nb6 {[%clk 0:01:15]} 25. Re7 {[%clk 0:00:43]}  Nxc4 {[%clk 0:01:14]} 26. bxc4 {[%clk 0:00:44]}  g6 {[%clk 0:01:10]} 27. Rxa7 {[%clk 0:00:43]}  Rb1+ {[%clk 0:01:10]} 28. Kh2 {[%clk 0:00:43]}  Rc1 {[%clk 0:01:09]} 29. Ra4 {[%clk 0:00:41]}  Rc2 {[%clk 0:01:09]} 30. Kg3 {[%clk 0:00:41]}  Kg7 {[%clk 0:01:08]} 31. Kf3 {[%clk 0:00:39]}  Kf6 {[%clk 0:01:07]} 32. h4 {[%clk 0:00:39]}  Ke5 {[%clk 0:01:05]} 33. Ke3 {[%clk 0:00:37]}  h6 {[%clk 0:01:00]} 34. g3 {[%clk 0:00:28]}  g5 {[%clk 0:00:58]} 35. h5 {[%clk 0:00:26]}  f5 {[%clk 0:00:57]} 36. Ra6 {[%clk 0:00:22]}  Rxc4 {[%clk 0:00:53]} 37. Rxh6 {[%clk 0:00:22]}  Ra4 {[%clk 0:00:52]} 38. Rc6 {[%clk 0:00:12]}  Ra3+ {[%clk 0:00:49]} 39. Ke2 {[%clk 0:00:10]}  Rxa2+ {[%clk 0:00:50]} 40. Ke3 {[%clk 0:00:10]}  Ra3+ {[%clk 0:00:50]} 41. Ke2 {[%clk 0:00:10]}  Kd5 {[%clk 0:00:41]} 42. Rf6 {[%clk 0:00:08]}  Ke4 {[%clk 0:00:37]} 43. h6 {[%clk 0:00:07]}  Ra2+ {[%clk 0:00:36]} 44. Ke1 {[%clk 0:00:06]}  Ra7 {[%clk 0:00:26]} 45. Rg6 {[%clk 0:00:02]}  c4 {[%clk 0:00:19]} 0-1


[Site "https://www.chess.com"]

[Event "Titled Tuesday Blitz October 11 Early 2022"]
[White "Garv Gaur"]
[Black "Yuan, Qingyu"]
[WhiteFideId "45030839"]
[BlackFideId "8609772"]
[WhiteElo "1960"]
[BlackElo "2359"]
[Result "1-0"]
[Round "03"]
[TimeControl "180+1"]
[Date "2022.10.12"]
[WhiteClock "0:01:17"]
[BlackClock "0:00:25"]

1. d4 {[%clk 0:03:00]}  d5 {[%clk 0:02:59]} 2. Nf3 {[%clk 0:03:00]}  Nf6 {[%clk 0:02:59]} 3. c4 {[%clk 0:03:01]}  e6 {[%clk 0:03:00]} 4. g3 {[%clk 0:03:01]}  dxc4 {[%clk 0:03:00]} 5. Bg2 {[%clk 0:03:01]}  c5 {[%clk 0:03:01]} 6. O-O {[%clk 0:03:01]}  Nc6 {[%clk 0:03:01]} 7. dxc5 {[%clk 0:02:55]}  Qxd1 {[%clk 0:03:02]} 8. Rxd1 {[%clk 0:02:55]}  Bxc5 {[%clk 0:03:03]} 9. Nbd2 {[%clk 0:02:56]}  c3 {[%clk 0:03:03]} 10. bxc3 {[%clk 0:02:57]}  O-O {[%clk 0:03:04]} 11. Nb3 {[%clk 0:02:57]}  Be7 {[%clk 0:03:04]} 12. Nfd4 {[%clk 0:02:58]}  Nxd4 {[%clk 0:03:05]} 13. cxd4 {[%clk 0:02:57]}  Nd5 {[%clk 0:03:05]} 14. Bd2 {[%clk 0:02:55]}  f5 {[%clk 0:03:02]} 15. f3 {[%clk 0:02:51]}  f4 {[%clk 0:02:49]} 16. gxf4 {[%clk 0:02:50]}  Nxf4 {[%clk 0:02:50]} 17. Bxf4 {[%clk 0:02:46]}  Rxf4 {[%clk 0:02:50]} 18. Rac1 {[%clk 0:02:46]}  Ba3 {[%clk 0:02:41]} 19. Rc2 {[%clk 0:02:35]}  Bd7 {[%clk 0:02:36]} 20. e3 {[%clk 0:02:33]}  Rf6 {[%clk 0:02:25]} 21. f4 {[%clk 0:02:33]}  Rc8 {[%clk 0:02:06]} 22. Rdd2 {[%clk 0:02:17]}  b6 {[%clk 0:01:59]} 23. Rxc8+ {[%clk 0:02:14]}  Bxc8 {[%clk 0:01:59]} 24. Rc2 {[%clk 0:02:15]}  Ba6 {[%clk 0:01:55]} 25. Nd2 {[%clk 0:02:14]}  Rf8 {[%clk 0:01:45]} 26. Rc7 {[%clk 0:02:08]}  Rf7 {[%clk 0:01:39]} 27. Rc6 {[%clk 0:02:08]}  Re7 {[%clk 0:01:31]} 28. Nc4 {[%clk 0:01:40]}  Bxc4 {[%clk 0:01:11]} 29. Rxc4 {[%clk 0:01:41]}  Bd6 {[%clk 0:01:09]} 30. Rc6 {[%clk 0:01:39]}  Bc7 {[%clk 0:01:00]} 31. Bh3 {[%clk 0:01:37]}  Kf7 {[%clk 0:01:00]} 32. Bxe6+ {[%clk 0:01:37]}  Rxe6 {[%clk 0:00:54]} 33. Rxc7+ {[%clk 0:01:37]}  Kf6 {[%clk 0:00:53]} 34. Kf2 {[%clk 0:01:34]}  a5 {[%clk 0:00:53]} 35. Kf3 {[%clk 0:01:34]}  Rd6 {[%clk 0:00:52]} 36. Ke4 {[%clk 0:01:30]}  h6 {[%clk 0:00:52]} 37. d5 {[%clk 0:01:29]}  g5 {[%clk 0:00:52]} 38. Rc6 {[%clk 0:01:26]}  Ke7 {[%clk 0:00:36]} 39. Rxd6 {[%clk 0:01:20]}  Kxd6 {[%clk 0:00:36]} 40. fxg5 {[%clk 0:01:17]}  hxg5 {[%clk 0:00:37]} 41. Kd4 {[%clk 0:01:18]}  b5 {[%clk 0:00:37]} 42. e4 {[%clk 0:01:18]}  b4 {[%clk 0:00:32]} 43. Kc4 {[%clk 0:01:18]}  a4 {[%clk 0:00:25]} 44. Kxb4 {[%clk 0:01:17]} 1-0


[Site "https://www.chess.com"]

[Event "Titled Tuesday Blitz October 11 Early 2022"]
[White "Goltsev, Dmitry"]
[Black "Haitin, Ilja"]
[WhiteFideId "24176710"]
[BlackFideId "4501764"]
[WhiteElo "2257"]
[BlackElo "2221"]
[Result "1-0"]
[Round "03"]
[TimeControl "180+1"]
[Date "2022.10.12"]
[WhiteClock "0:00:11"]
[BlackClock "0:00:17"]

1. e4 {[%clk 0:03:00]}  d6 {[%clk 0:02:58]} 2. Nf3 {[%clk 0:02:59]}  Nf6 {[%clk 0:02:58]} 3. Nc3 {[%clk 0:02:57]}  e5 {[%clk 0:02:58]} 4. d4 {[%clk 0:02:52]}  Nbd7 {[%clk 0:02:58]} 5. Bc4 {[%clk 0:02:52]}  Be7 {[%clk 0:02:58]} 6. Bxf7+ {[%clk 0:02:51]}  Kxf7 {[%clk 0:02:58]} 7. Ng5+ {[%clk 0:02:52]}  Kg8 {[%clk 0:02:54]} 8. Ne6 {[%clk 0:02:49]}  Qe8 {[%clk 0:02:54]} 9. Nxc7 {[%clk 0:02:43]}  Qg6 {[%clk 0:02:54]} 10. O-O {[%clk 0:02:41]}  Rb8 {[%clk 0:02:50]} 11. f4 {[%clk 0:02:29]}  h6 {[%clk 0:02:28]} 12. Be3 {[%clk 0:02:06]}  Kh7 {[%clk 0:02:23]} 13. f5 {[%clk 0:01:56]}  Qg4 {[%clk 0:02:16]} 14. Qd3 {[%clk 0:01:52]}  exd4 {[%clk 0:02:10]} 15. Qxd4 {[%clk 0:01:51]}  Ne5 {[%clk 0:02:00]} 16. h3 {[%clk 0:01:51]}  Qh5 {[%clk 0:01:58]} 17. N3d5 {[%clk 0:01:35]}  Nxd5 {[%clk 0:01:56]} 18. Nxd5 {[%clk 0:01:35]}  Bg5 {[%clk 0:01:35]} 19. f6 {[%clk 0:01:28]}  Bxh3 {[%clk 0:01:30]} 20. gxh3 {[%clk 0:01:22]}  Nf3+ {[%clk 0:01:18]} 21. Rxf3 {[%clk 0:01:20]}  Qxf3 {[%clk 0:01:19]} 22. Bxg5 {[%clk 0:00:54]}  Qg3+ {[%clk 0:01:15]} 23. Kf1 {[%clk 0:00:50]}  Qxg5 {[%clk 0:01:11]} 24. Ke2 {[%clk 0:00:46]}  Rhe8 {[%clk 0:00:41]} 25. Rg1 {[%clk 0:00:37]}  Qh5+ {[%clk 0:00:40]} 26. Kd3 {[%clk 0:00:31]}  Qxh3+ {[%clk 0:00:38]} 27. Kc4 {[%clk 0:00:31]}  b5+ {[%clk 0:00:32]} 28. Kb4 {[%clk 0:00:30]}  a5+ {[%clk 0:00:31]} 29. Kxa5 {[%clk 0:00:30]}  b4 {[%clk 0:00:22]} 30. Rxg7+ {[%clk 0:00:27]}  Kh8 {[%clk 0:00:23]} 31. Ra7 {[%clk 0:00:19]}  Re5 {[%clk 0:00:20]} 32. Ka4 {[%clk 0:00:16]}  b3 {[%clk 0:00:19]} 33. Ne7 {[%clk 0:00:11]}  bxa2 {[%clk 0:00:17]} 34. Ng6+ {[%clk 0:00:10]}  Kg8 {[%clk 0:00:17]} 35. Rg7# {[%clk 0:00:11]} 1-0


[Site "https://www.chess.com"]

[Event "Titled Tuesday Blitz October 11 Early 2022"]
[White "Gonzalez, Francisco Silva"]
[Black "Dilmukhametov, Artur"]
[WhiteFideId "1512285"]
[BlackFideId "24179922"]
[WhiteElo "2159"]
[BlackElo "2197"]
[Result "1-0"]
[Round "03"]
[TimeControl "180+1"]
[Date "2022.10.12"]
[WhiteClock "0:01:54"]
[BlackClock "0:00:13"]

1. d4 {[%clk 0:02:46]}  Nf6 {[%clk 0:02:52]} 2. c4 {[%clk 0:02:42]}  g6 {[%clk 0:02:51]} 3. Nc3 {[%clk 0:02:42]}  Bg7 {[%clk 0:02:50]} 4. e4 {[%clk 0:02:42]}  d6 {[%clk 0:02:50]} 5. Be2 {[%clk 0:02:43]}  O-O {[%clk 0:02:49]} 6. g4 {[%clk 0:02:43]}  e5 {[%clk 0:02:19]} 7. g5 {[%clk 0:02:36]}  Nfd7 {[%clk 0:02:13]} 8. d5 {[%clk 0:02:36]}  Na6 {[%clk 0:02:07]} 9. h4 {[%clk 0:02:34]}  Nac5 {[%clk 0:02:07]} 10. b4 {[%clk 0:02:33]}  Na6 {[%clk 0:02:03]} 11. a3 {[%clk 0:02:33]}  f6 {[%clk 0:01:07]} 12. Be3 {[%clk 0:02:29]}  f5 {[%clk 0:01:04]} 13. f3 {[%clk 0:02:28]}  fxe4 {[%clk 0:01:03]} 14. Nxe4 {[%clk 0:02:25]}  Rf7 {[%clk 0:00:56]} 15. Nh3 {[%clk 0:02:24]}  Nf8 {[%clk 0:00:53]} 16. Nhf2 {[%clk 0:02:23]}  Bf5 {[%clk 0:00:52]} 17. c5 {[%clk 0:02:23]}  Bxe4 {[%clk 0:00:36]} 18. Nxe4 {[%clk 0:02:21]}  Nd7 {[%clk 0:00:28]} 19. c6 {[%clk 0:02:18]}  bxc6 {[%clk 0:00:26]} 20. Bxa6 {[%clk 0:02:15]}  cxd5 {[%clk 0:00:23]} 21. Qxd5 {[%clk 0:02:14]}  Nb6 {[%clk 0:00:22]} 22. Qe6 {[%clk 0:02:11]}  Qf8 {[%clk 0:00:18]} 23. Rd1 {[%clk 0:02:05]}  Kh8 {[%clk 0:00:15]} 24. h5 {[%clk 0:01:55]}  Rxf3 {[%clk 0:00:13]} 25. hxg6 {[%clk 0:01:54]}  Rxe3+ {[%clk 0:00:13]} 26. Kd2 {[%clk 0:01:54]}  Qf2+ {[%clk 0:00:13]} 27. Nxf2 {[%clk 0:01:54]} 1-0


[Site "https://www.chess.com"]